Workbook

Sheet Instructions
A1: Instructions
A2: Kindly read All Instructions before Use Report Card Utitly
A3: 1. To Fill All Required Data Use Entry Sheet
A4: 2. Fill Data only In Yellow Cell.
A5: 3. Select Month , Year And Day on Which Kheer is prepared for students
A6: 4. in Entry Sheet Enter Date wise No. of Students to whom Served Meal (Yellow Cells). Left Cell Blank On Holidays
A7: 5. Now Goto Bill Print Sheet To Print Bill. There are two option First Auto Bill - No Need To do any think just take print or Make pdfSecond is Custom Bill - Where you can Fill Custom rate of items. I Custom Bill you have to Match Bill Amount with Montly cost
A8: 6. Calculation Sheet is Just to Show Daily And Mothly Consumtion of Various Items Used in MDM
A9: 7. If any Query/Suggestion Please Email Us at abhi072011@gmail.com
A10: 8. Visit Website for More Tools

Sheet Entry Sheet
A1: ਮਿਡ-ਡੇ-ਮੀਲ kYlkulytr (pRwiemrI) | J1: ਇਸ ਐਂਟਰੀ ਸ਼ੀਟ ਦੇ ਪੀਲੇ ਖਾਨਿਆਂ ਵਿੱਚ twiep kਰੋ ਅਤੇ ib`l ਦੇ ਪ੍ਰਿੰਟ ਪ੍ਰਾਪਤ ਕਰੋ | Q1: Cooking Cost Per Student | S1: 6.78
A3: ਸਕੂਲ : | B3: srkwrI pRwiemrI skUl | J3: ਮਹੀਨਾ: | L3: May | N3: Anwj dw ਮੁਢਲਾ ਬਕਾਇਆ | Q3: ies mhIny pRwpq Anwj
A5: blwk : | B5: KMnw-2 | J5: ਸਾਲ: | L5: 2025 | N5: kxk (ਕਿਲੋਗ੍ਰਾਮ): | P5: 0 | Q5: kxk (ਕਿਲੋਗ੍ਰਾਮ): | S5: 0
A7: ਜਿਲ੍ਹਾ : | B7: luiDAwxw | J7: ਖੀਰ ਬਣਾਉਣ ਵਾਲਾ ਦਿਨ : | L7: Mon | N7: cwvl (ਕਿਲੋਗ੍ਰਾਮ): | P7: 0 | Q7: cwvl (ਕਿਲੋਗ੍ਰਾਮ): | S7: 0
J8: PrUt dyx dw idn : | L8: Wed
D9: imf-fy-mIl sbMDI Anwj dw stwk Aqy Kpq rijstr ( jmwq 1vIN qo 5vIN) | Q9: Total Working Day | S9: =COUNTIF(J15:J45,">0") -> 2
D10: =B3&" "&" blwk "&" "&B5&" "&" ijlHw "& " "&B7 & " " -> srkwrI pRwiemrI skUl blwk KMnw-2 ijlHw luiDAwxw | O10: =L3 -> May | P10: =L5 -> 2025 | V10: Satrt Date | W10: =DATEVALUE(1&L3&L5) -> 2025-05-01
D12: imqI | E12: Bojn Kwx vwly ividAwrQI | K12: kxk | L12: cwvl | M12: shI | N12: mYbrW vlO nrIKx | P12: irmwks | V12: End Date | W12: =EOMONTH(W10,0) -> 2025-05-31
A13: mhIny dorwn AOsqn dwKl ividAwrQI dI igxqI:- | E13: 1 | F13: 2 | G13: 3 | H13: 4 | I13: 5 | J13: ku`l | K13: K`pq 100 gRwm pRiq ivid | L13: K`pq 100 gRwm pRiq ivid. | N13: nW | O13: hsqwKr
E14: hwjr | F14: hwjr | G14: hwjr | H14: hwjr | I14: hwjr | J14: hwjr | K14: iklo ivc | L14: iklo iv`c | W14: Jan
A15: mhIny dy surU ivc muFlw bkweiAw | D15: =W10 -> 2025-05-01 | J15: =SUM(E15:I15) -> 0 | K15: ='Calculation sheet'!L7 -> 0 | L15: ='Calculation sheet'!M7 -> 0 | U15: =IF(ISBLANK((D15)),"None",TEXT(D15,"DDD")) -> Thu | V15: Mon | W15: Feb
A16: kxk (iklo iv`c) | B16: cwvl (iklo iv`c) | D16: =IF(D15<$W$12,D15+1,"") -> 2025-05-02 | J16: =SUM(E16:I16) -> 0 | K16: ='Calculation sheet'!L8 -> 0 | L16: ='Calculation sheet'!M8 -> 0 | U16: =IF(ISBLANK((D16)),"None",TEXT(D16,"DDD")) -> Fri | V16: Tue | W16: Mar
A17: =P5 -> 0 | B17: =P7 -> 0 | D17: =IF(D16<$W$12,D16+1,"") -> 2025-05-03 | J17: 0 | K17: ='Calculation sheet'!L9 -> 0 | L17: ='Calculation sheet'!M9 -> 0 | U17: Sat | V17: Wed | W17: Apr
D18: 2025-05-04 | J18: 0 | K18: ='Calculation sheet'!L10 -> 0 | L18: ='Calculation sheet'!M10 -> 0 | U18: Sun | V18: Thu | W18: May
A19: pRwpq kxk | B19: cwvl | D19: 2025-05-05 | J19: 0 | K19: ='Calculation sheet'!L11 -> 0 | L19: ='Calculation sheet'!M11 -> 0 | U19: Mon | V19: Fri | W19: Jun
A20: =S5 -> 0 | B20: =S7 -> 0 | D20: 2025-05-06 | J20: 0 | K20: ='Calculation sheet'!L12 -> 0 | L20: ='Calculation sheet'!M12 -> 0 | U20: Tue | V20: Sat | W20: Jul
D21: 2025-05-07 | E21: 400 | J21: 400 | K21: ='Calculation sheet'!L13 -> 40 | L21: ='Calculation sheet'!M13 -> 0 | U21: Wed | W21: Aug
A22: joV kxk | B22: cwvl | D22: 2025-05-08 | E22: 300 | J22: 300 | K22: ='Calculation sheet'!L14 -> 0 | L22: ='Calculation sheet'!M14 -> 30 | U22: Thu | W22: Sep
A23: =A17+A20 -> 0 | B23: =B17+B20 -> 0 | D23: 2025-05-09 | J23: 0 | K23: ='Calculation sheet'!L15 -> 0 | L23: ='Calculation sheet'!M15 -> 0 | U23: Fri | W23: Oct
D24: 2025-05-10 | J24: 0 | K24: ='Calculation sheet'!L16 -> 0 | L24: ='Calculation sheet'!M16 -> 0 | U24: Sat | W24: Nov
A25: mhIny dorwn Kpq | D25: 2025-05-11 | J25: 0 | K25: ='Calculation sheet'!L17 -> 0 | L25: ='Calculation sheet'!M17 -> 0 | U25: Sun | W25: Dec
A26: ='Calculation sheet'!L38 -> 40 | B26: ='Calculation sheet'!M38 -> 30 | D26: 2025-05-12 | J26: 0 | K26: ='Calculation sheet'!L18 -> 0 | L26: ='Calculation sheet'!M18 -> 0 | U26: Mon
D27: 2025-05-13 | J27: 0 | K27: ='Calculation sheet'!L19 -> 0 | L27: ='Calculation sheet'!M19 -> 0 | U27: Tue
D28: 2025-05-14 | J28: 0 | K28: ='Calculation sheet'!L20 -> 0 | L28: ='Calculation sheet'!M20 -> 0 | U28: Wed
A29: mhIny dy AMq ivc bkwieAw | D29: 2025-05-15 | J29: 0 | K29: ='Calculation sheet'!L21 -> 0 | L29: ='Calculation sheet'!M21 -> 0 | U29: Thu
A30: kxk | B30: cwvl | D30: 2025-05-16 | J30: 0 | K30: ='Calculation sheet'!L22 -> 0 | L30: ='Calculation sheet'!M22 -> 0 | U30: Fri
A31: =A23-A26 -> -40 | B31: =B23-B26 -> -30 | D31: 2025-05-17 | J31: 0 | K31: ='Calculation sheet'!L23 -> 0 | L31: ='Calculation sheet'!M23 -> 0 | U31: Sat
A32: ku`l kuikg kwst | B32: =J46*S1 -> 4746 | D32: 2025-05-18 | J32: 0 | K32: ='Calculation sheet'!L24 -> 0 | L32: ='Calculation sheet'!M24 -> 0 | U32: Sun
A33: pRwpq Awmdn PFMS qyies mhIny | D33: 2025-05-19 | J33: 0 | K33: ='Calculation sheet'!L25 -> 0 | L33: ='Calculation sheet'!M25 -> 0 | U33: Mon
D34: 2025-05-20 | J34: 0 | K34: ='Calculation sheet'!L26 -> 0 | L34: ='Calculation sheet'!M26 -> 0 | U34: Tue
A35: Krcw PFMS qy ( PPA ) | D35: 2025-05-21 | J35: 0 | K35: ='Calculation sheet'!L27 -> 0 | L35: ='Calculation sheet'!M27 -> 0 | U35: Wed
D36: 2025-05-22 | J36: 0 | K36: ='Calculation sheet'!L28 -> 0 | L36: ='Calculation sheet'!M28 -> 0 | U36: Thu
A37: muFlw bkwieAw kuikMg kwst | D37: 2025-05-23 | J37: 0 | K37: ='Calculation sheet'!L29 -> 0 | L37: ='Calculation sheet'!M29 -> 0 | U37: Fri
D38: 2025-05-24 | J38: 0 | K38: ='Calculation sheet'!L30 -> 0 | L38: ='Calculation sheet'!M30 -> 0 | U38: Sat
A39: mhIny dy AMq ivc bkwieAw | B39: =B37+B33-B35 -> 0 | D39: 2025-05-25 | J39: 0 | K39: ='Calculation sheet'!L31 -> 0 | L39: ='Calculation sheet'!M31 -> 0 | U39: Sun
D40: 2025-05-26 | J40: 0 | K40: ='Calculation sheet'!L32 -> 0 | L40: ='Calculation sheet'!M32 -> 0 | U40: Mon
D41: 2025-05-27 | J41: 0 | K41: ='Calculation sheet'!L33 -> 0 | L41: ='Calculation sheet'!M33 -> 0 | U41: Tue
D42: 2025-05-28 | J42: 0 | K42: ='Calculation sheet'!L34 -> 0 | L42: ='Calculation sheet'!M34 -> 0 | U42: Wed
D43: 2025-05-29 | J43: 0 | K43: ='Calculation sheet'!L35 -> 0 | L43: ='Calculation sheet'!M35 -> 0 | U43: Thu
D44: 2025-05-30 | J44: 0 | K44: ='Calculation sheet'!L36 -> 0 | L44: ='Calculation sheet'!M36 -> 0 | U44: Fri
D45: 2025-05-31 | J45: 0 | K45: ='Calculation sheet'!L37 -> 0 | L45: ='Calculation sheet'!M37 -> 0 | U45: Sat
D46: ku`l | E46: =SUM(E15:E45) -> 700 | F46: =SUM(F15:F45) -> 0 | G46: 0 | H46: 0 | I46: 0 | J46: =SUM(J15:J45) -> 700 | K46: =SUM(K15:K45) -> 40 | L46: 30
A52: PrUt dI igxqI ies mhIny | B52: ='Bill Print'!E34 -> 400
A53: PrUt dy bxdy pYsy | B53: ='Bill Print'!H34 -> 2000

Sheet Bill Print
C2: Monthly Bill Item Wise Auto | N2: Monthly Bill Custom Rate Wise
C3: For the Month of: | H3: ='Entry Sheet'!L3&"_"&'Entry Sheet'!L5 -> May_2025 | N3: For the Month of: | R3: =H3 -> May_2025 | S3: =#REF!&+"_"&#REF! -> 
C4: kirAwnw ib`l | N4: kirAwnw ib`l
C5: Sr. no. | D5: Item | E5: Quantity | F5: Rate | G5: Total | H5: Total Amount | N5: Sr. no. | O5: Item | P5: Quantity | Q5: Rate | R5: Total | S5: Total Amount
C6: 1 | D6: dwl (cnw Aqy muMgI) | E6: ='Calculation sheet'!$Z$38 -> 0 | F6: 110 | G6: =E6*F6 -> 0 | H6: =G6 -> 0 | N6: 1 | O6: dwl (cnw Aqy muMgI) | P6: ='Calculation sheet'!$Z$38 -> 0 | Q6: 100 | R6: =P6*Q6 -> 0 | S6: =R6 -> 0
C7: 2 | D7: kwly Coly | E7: ='Calculation sheet'!$AA$38 -> 10 | F7: 90 | G7: =E7*F7 -> 900 | H7: =G7 -> 900 | N7: 2 | O7: kwly Coly | P7: ='Calculation sheet'!$AA$38 -> 10 | Q7: 90 | R7: =P7*Q7 -> 900 | S7: =R7 -> 900
C8: 3 | D8: bysx | E8: ='Calculation sheet'!$AD$38 -> 6 | F8: 105 | G8: 630 | H8: 630 | N8: 3 | O8: bysx | P8: ='Calculation sheet'!$AD$38 -> 6 | Q8: 105 | R8: 630 | S8: 630
C9: 4 | D9: irPwief qyl | E9: ='Calculation sheet'!$AG$38 -> 5.7 | F9: 130 | G9: 741 | H9: 741 | N9: 4 | O9: irPwief qyl | P9: ='Calculation sheet'!$AG$38 -> 5.7 | Q9: 130 | R9: 741 | S9: 741
C10: 5 | D10: cInI | E10: ='Calculation sheet'!$AH$38 -> 0 | F10: 40 | G10: 0 | H10: 0 | N10: 5 | O10: cInI | P10: ='Calculation sheet'!$AH$38 -> 0 | Q10: 40 | R10: 0 | S10: 0
C11: 6 | D11: rwjmwh | E11: ='Calculation sheet'!$AK$38 -> 0 | F11: 95 | G11: 0 | H11: 0 | N11: 6 | O11: rwjmwh | P11: ='Calculation sheet'!$AK$38 -> 0 | Q11: 95 | R11: 0 | S11: 0
C12: 7 | D12: nmk | G12: =ROUND(SUM(G6:G11)/8,0) -> 284 | H12: =G12 -> 284 | N12: 7 | O12: nmk | Q12: 50 | R12: =Q12 -> 50 | S12: =R12 -> 50
C13: 8 | D13: hldI | N13: 8 | O13: hldI | Q13: 50 | R13: =Q13 -> 50 | S13: =R13 -> 50
C14: 9 | D14: imrc | N14: 9 | O14: imrc | Q14: 10 | R14: 10 | S14: 10
C15: 10 | D15: mswlw | N15: 10 | O15: mswlw | Q15: 50 | R15: 50 | S15: =R15 -> 50
C16: 11 | D16: dwKW | E16: =IF(H29<1,0,IF(H29<700,1,IF(H29<1000,2,IF(H29<1600,3,IF(H29<2500,4,IF(H29>3000,5,0)))))) -> 0 | F16: 50 | G16: 0 | H16: =G16 -> 0 | N16: 11 | O16: dwKW | R16: =Q16 -> 0 | S16: =R16 -> 0
C17: 12 | D17: Kopw | E17: =IF(H29<1,0,IF(H29<700,1,IF(H29<1000,2,IF(H29<1600,3,IF(H29<2500,4,IF(H29>3000,5,0)))))) -> 0 | F17: 20 | G17: 0 | H17: =G17 -> 0 | N17: 12 | O17: Kopw | R17: =Q17 -> 0 | S17: =R17 -> 0
C18: 13 | D18: jIrw (grwmW iv`c) | E18: =IF(F44<4000,100,IF(F44<10000,200,IF(F44<15000,300,IF(F44<20000,350,IF(F44>20000,400,0))))) -> 200 | F18: 490 | G18: =(E18*F18)/1000 -> 98 | H18: =G18+G44 -> 98 | N18: 13 | O18: jIrw (grwmW iv`c) | R18: 0 | S18: =R18+R44 -> 0
D19: Total | G19: =SUM(G6:G18) -> 2653 | H19: =SUM(H6:H18) -> 2653 | O19: Total | R19: =SUM(R6:R18) -> 2431 | S19: =SUM(S6:S18) -> 2431
C20: sbjI mMfI ib`l | N20: sbjI mMfI ib`l
C21: Sr. no. | D21: Item | E21: Quantity | F21: Rate | G21: Total | H21: Amount | N21: Sr. no. | O21: Item | P21: Quantity | Q21: Rate | R21: Total | S21: Amount
C22: 1 | D22: ipAwj | E22: ='Calculation sheet'!$AB$38 -> 9 | F22: 20 | G22: =E22*F22 -> 180 | H22: =G22 -> 180 | N22: 1 | O22: ipAwj | P22: =E22 -> 9 | Q22: 20 | R22: =P22*Q22 -> 180 | S22: =R22 -> 180
C23: 2 | D23: AwlU | E23: ='Calculation sheet'!$AJ$38 -> 9 | F23: 15 | G23: =E23*F23 -> 135 | H23: =G23 -> 135 | N23: 2 | O23: AwlU | P23: =E23 -> 9 | Q23: 20 | R23: =P23*Q23 -> 180 | S23: =R23 -> 180
C24: 3 | D24: Adrk,tmwtr,hrI imrc | G24: =ROUND(G22/5,-1) -> 40 | H24: 40 | N24: 3 | O24: Adrk,tmwtr,hrI imrc | Q24: 50 | R24: =Q24 -> 50 | S24: 50
C25: 4 | D25: sbjI | E25: ='Calculation sheet'!$AE$38 -> 0 | F25: 25 | G25: =ROUND((E25+E26)*F25,0) -> 0 | H25: =ROUND(G25,0) -> 0 | N25: 4 | O25: sbjI | P25: 0 | Q25: 30 | R25: =(P25+P26)*Q25 -> 0 | S25: =R25 -> 0
C26: 5 | D26: sbjI dwl leI | E26: ='Calculation sheet'!$AF$38 -> 0 | N26: 5 | O26: sbjI dwl leI | P26: 0
C27: fyArI ib`l | N27: fyArI ib`l
C28: Sr. no. | D28: Item | E28: Quantity | F28: Rate | G28: Total | H28: Amount | N28: Sr. no. | O28: Item | P28: Quantity | Q28: Rate | R28: Total | S28: Amount
C29: 1 | D29: du`D | E29: ='Calculation sheet'!$AI$38 -> 0 | F29: 65 | G29: =E29*F29 -> 0 | H29: =G29 -> 0 | N29: 1 | O29: du`D | P29: =E29 -> 0 | Q29: 65 | R29: =P29*Q29 -> 0 | S29: =R29 -> 0
C30: 2 | D30: dhIN | E30: ='Calculation sheet'!$AC$38 -> 6 | F30: 80 | G30: 480 | H30: =G30 -> 480 | N30: 2 | O30: dhIN | P30: =E30 -> 6 | Q30: 80 | R30: 480 | S30: =R30 -> 480
C31: ib`l bwkI Aietm | N31: ib`l bwkI Aietm
C32: 1 | D32: Awtw ipsweI | E32: ='Calculation sheet'!$L$38 -> 40 | F32: 3 | G32: 120 | H32: =G32 -> 120 | N32: 1 | O32: Awtw ipsweI | P32: =E32 -> 40 | Q32: 3 | R32: =P32*Q32 -> 120 | S32: =R32 -> 120
C33: 2 | D33: bwlx | G33: =ROUND(F44-SUM(G19:G32),0) -> 1138 | H33: =ROUND(G33,1) -> 1138 | N33: 2 | O33: bwlx | Q33: 200 | R33: =Q33 -> 200 | S33: =ROUND(R33,1) -> 200
C34: 3 | D34: kyly (pIsW iv`c) | E34: ='Calculation sheet'!AL38 -> 400 | F34: 5 | H34: =E34*F34 -> 2000 | N34: 3 | O34: kyly (pIsW iv`c) | P34: ='Calculation sheet'!AL38 -> 400 | Q34: 5 | R34: =P34*Q34 -> 2000 | S34: =P34*Q34 -> 2000
D35: ku`l PrUt smyq | E35: =H35+H34 -> 6746 | F35: ibnw PrUt | G35: =SUM(G19:G34) -> 4746 | H35: =SUM(H19:H33) -> 4746 | O35: ku`l PrUt smyq | P35: =R35+R34 -> 5641 | Q35: ibnw PrUt | R35: =SUM(R19:R33) -> 3641 | S35: =SUM(S19:S33) -> 3641
F40: =IF(H35=F44,"Matched","error") -> Matched | O40: Required | P40: Diff
O41: ='Calculation sheet'!$R$38 -> 4746 | P41: =O41-R35 -> 1105
F43: Required | G43: Diff
F44: ='Calculation sheet'!$R$38 -> 4746 | G44: =F44-G35 -> 0

Sheet Calculation sheet
A2: ="rojwnw Anwj dI Kpq Aqy pkwaux dy Krcy dI irport"& " skUl dw nwm: = "&'Entry Sheet'!D10 -> rojwnw Anwj dI Kpq Aqy pkwaux dy Krcy dI irport skUl dw nwm: = srkwrI pRwiemrI skUl blwk KMnw-2 ijlHw luiDAwxw
A3: lVI nM | B3: imqI | C3: dwKl hoey ividAwrQIAw dI igxqI | D3: hwjLr ividAwrQIAw dI igxqI | E3: Bojn krn vwly ividAwrQIAw dI igxqI | F3: skUl ivwc Anwj dw BMzwr | J3: ku`l BMfwr | L3: A`j dy idn dI Anwj dI vrqoN | N3: ies mhIny dI Anwj dI vrqoN pROgRYisv | P3: Anwj dw bkwieAw BMzwr | R3: A`j dy idn dw Bojn bxwaux dw Krcw | S3: ies mhIny dw pOgRYisv Bojn pkwaux dw Krcw | T3: Bojn dI iksm | Z3: Bojn bnwaux leI dUsrI smgrI (iklo iv`c)
F4: muuFlw bkwieAw | H4: A`j dy idn dI pRwpqI
F5: kxk iklo ivwc | G5: cwvl iklo iv`c | H5: kxk ik`lo iv`c | I5: cwvl iklo iv`c | J5: kxk ik`lo iv`c | K5: cwvl iklo iv`c | L5: kxk ik`lo iv`c | M5: cwvl iklo iv`c | N5: kxk ik`lo ivwc | O5: cwvl iklo iv`c | P5: kxk ik`lo ivwc | Q5: cwvl iklo iv`c | V5: ='Entry Sheet'!L7 -> Mon | Z5: Dal | AA5: Black Channa | AB5: Onion | AC5: Curd | AD5: Besan | AE5: Vegetables | AF5: Vegitable for Dal | AG5: Oil & Fat | AH5: Sugar | AI5: Milk | AJ5: Pattato | AK5: Rajmah | AL5: Fruits | AM5: pRqI b`cw rwSn dI imkdwr
A6: Previous | E6: 0 | F6: ='Entry Sheet'!P5 -> 0 | G6: ='Entry Sheet'!P7 -> 0 | H6: ='Entry Sheet'!S5 -> 0 | I6: ='Entry Sheet'!S7 -> 0 | Z6: In KG | AA6: In KG | AB6: In KG | AC6: In KG | AD6: In KG | AE6: In KG | AF6: In KG | AG6: In KG | AH6: In KG | AI6: In Litt | AJ6: In KG | AK6: In kg | AL6: pcs | AM6: Item | AN6: Quantity /Std in gm | AO6: In KG
A7: 1 | B7: ='Entry Sheet'!D15 -> 2025-05-01 | D7: ='Entry Sheet'!J15 -> 0 | E7: =D7 -> 0 | F7: =F6 -> 0 | G7: =G6 -> 0 | H7: 0 | I7: 0 | J7: =F7+H6 -> 0 | K7: =G7+I6 -> 0 | L7: =IF(OR(X7="MonOK",X7="WedOK",X7="FriOK"),E7*0.1,IF(OR(X7="MonOK Aqy Kir",X7="WedOK Aqy Kir",X7="FriOK Aqy Kir"),E7*0.09,0)) -> 0 | M7: =IF(OR(X7="TueOK",X7="ThuOK",X7="SatOK"),E7*0.1,IF(OR(X7="MonOK Aqy Kir",X7="WedOK Aqy Kir",X7="FriOK Aqy Kir"),E7*0.01,IF(OR(X7="TueOK Aqy Kir",X7="ThuOK Aqy Kir",X7="SatOK Aqy Kir"),E7*0.1,0))) -> 0 | N7: =N6+L7 -> 0 | O7: 0 | P7: =J7-L7 -> 0 | Q7: =K7-M7 -> 0 | R7: =E7*'Entry Sheet'!$S$1 -> 0 | S7: =S6+R7 -> 0 | T7: =CHOOSE(Y7,"dwl (mOsmI sbjI imlw ky) Aqy rotI","rwjmwh Aqy cwvl","kwly Colyy(AwlU imlw ky)Aqy rotI ","kVI (pkOoiVAW smyq) Aqy cwvl","moOsmI sbjI Aqy rotI","dwl (mOsmI sbjI imlw ky) Aqy cwvl ","dwl (mOsmI sbjI imlw ky) Aqy rotI Aqy KIr","rwjmwh Aqy cwvl Aqy KIr","kwly Colyy(AwlU imlw ky)Aqy rotI Aqy KIr","kVI (pkOoiVAW smyq) Aqy cwvl Aqy KIr","moOsmI sbjI Aqy rotI Aqy KIr","dwl (mOsmI sbjI imlw ky) Aqy cwvl Aqy KIr","Cu`tI","Cu`tI") -> Cu`tI | U7: =IF(AND(W7="Wed",E7>0),"kwly Colyy(AwlU imlw ky)Aqy rotI ",IF(AND(W7="Thu",E7>0),"kVI (pkOoiVAW smyq) Aqy cwvl",IF(AND(W7="Mon",E7>0),"dwl (mOsmI sbjI imlw ky) Aqy rotI",IF(AND(W7="Tue",E7>0),"rwjmwh Aqy cwvl",IF(AND(W7="Fri",E7>0),"moOsmI sbjI Aqy rotI",IF(AND(W7="Sat",E7>0),"dwl (mOsmI sbjI imlw ky) Aqy cwvl ","Cu`tI")))))) -> Cu`tI | V7: =IF(AND(E7>0,$V$5=W7)," Aqy KIr","") ->  | W7: ='Entry Sheet'!U15 -> Thu | X7: =IF(E7>0,W7&"OK"&V7,"") ->  | Y7: =IF(X7="MonOk",1,IF(X7="TueOk",2,IF(X7="WedOk",3,IF(X7="ThuOk",4,IF(X7="FriOk",5,IF(X7="SatOk",6,IF(X7="MonOk Aqy KIr",7,IF(X7="TueOk Aqy KIr",8,IF(X7="WedOk Aqy KIr",9,IF(X7="ThuOk Aqy KIr",10,IF(X7="FriOk Aqy KIr",11,IF(X7="SatOk Aqy KIr",12,IF(W7="Sun",13,14))))))))))))) -> 14 | Z7: =IF(OR(Y7=1,Y7=6,Y7=7,Y7=12),E7*$AO$7,0) -> 0 | AA7: =IF(OR(Y7=3,Y7=9),E7*$AO$8,0) -> 0 | AB7: =IF(OR(Y7=1,Y7=6,Y7=7,Y7=12,Y7=2,Y7=8),E7*$AO$21,IF(OR(Y7=3,Y7=9),E7*$AO$22,IF(OR(Y7=4,Y7=10),E7*$AO$23,IF(OR(Y7=5,Y7=11),E7*$AO$24,0)))) -> 0 | AC7: =IF(OR(Y7=4,Y7=10),E7*$AO$19,0) -> 0 | AD7: =IF(OR(Y7=4,Y7=10),E7*$AO$10,0) -> 0 | AE7: =IF(OR(Y7=5,Y7=11),E7*$AO$28,0) -> 0 | AF7: =IF(OR(Y7=1,Y7=6,Y7=7,Y7=12),E7*$AO$27,0) -> 0 | AG7: =IF(OR(Y7=1,Y7=6,Y7=7,Y7=12,Y7=2,Y7=8),E7*$AO$11,IF(OR(Y7=3,Y7=9),E7*$AO$12,IF(OR(Y7=4,Y7=10),E7*$AO$13,IF(OR(Y7=5,Y7=11),E7*$AO$14,0)))) -> 0 | AH7: =IF(OR(Y7=7,Y7=8,Y7=9,Y7=10,Y7=11,Y7=12),E7*$AO$18,0) -> 0 | AI7: =IF(OR(Y7=7,Y7=8,Y7=9,Y7=10,Y7=11,Y7=12),E7*$AO$20,0) -> 0 | AJ7: =IF(OR(Y7=4,Y7=10),E7*$AO$25,IF(OR(Y7=3,Y7=9),E7*$AO$26,0)) -> 0 | AK7: =IF(OR(Y7=2,Y7=8),E7*$AO$9,0) -> 0 | AL7: =IF('Entry Sheet'!$L$8='Calculation sheet'!W7,E7,0) -> 0 | AM7: dwl | AN7: 20 | AO7: =AN7/1000 -> 0.02
A8: 2 | B8: ='Entry Sheet'!D16 -> 2025-05-02 | D8: ='Entry Sheet'!J16 -> 0 | E8: =D8 -> 0 | F8: =P7 -> 0 | G8: =Q7 -> 0 | H8: 0 | I8: 0 | J8: =F8+H8 -> 0 | K8: =G8+I8 -> 0 | L8: =IF(OR(X8="MonOK",X8="WedOK",X8="FriOK"),E8*0.1,IF(OR(X8="MonOK Aqy Kir",X8="WedOK Aqy Kir",X8="FriOK Aqy Kir"),E8*0.09,0)) -> 0 | M8: =IF(OR(X8="TueOK",X8="ThuOK",X8="SatOK"),E8*0.1,IF(OR(X8="MonOK Aqy Kir",X8="WedOK Aqy Kir",X8="FriOK Aqy Kir"),E8*0.01,IF(OR(X8="TueOK Aqy Kir",X8="ThuOK Aqy Kir",X8="SatOK Aqy Kir"),E8*0.1,0))) -> 0 | N8: 0 | O8: 0 | P8: =J8-L8 -> 0 | Q8: =K8-M8 -> 0 | R8: =E8*'Entry Sheet'!$S$1 -> 0 | S8: =S7+R8 -> 0 | T8: =CHOOSE(Y8,"dwl (mOsmI sbjI imlw ky) Aqy rotI","rwjmwh Aqy cwvl","kwly Colyy(AwlU imlw ky)Aqy rotI ","kVI (pkOoiVAW smyq) Aqy cwvl","moOsmI sbjI Aqy rotI","dwl (mOsmI sbjI imlw ky) Aqy cwvl ","dwl (mOsmI sbjI imlw ky) Aqy rotI Aqy KIr","rwjmwh Aqy cwvl Aqy KIr","kwly Colyy(AwlU imlw ky)Aqy rotI Aqy KIr","kVI (pkOoiVAW smyq) Aqy cwvl Aqy KIr","moOsmI sbjI Aqy rotI Aqy KIr","dwl (mOsmI sbjI imlw ky) Aqy cwvl Aqy KIr","Cu`tI","Cu`tI") -> Cu`tI | U8: =IF(AND(W8="Wed",E8>0),"kwly Colyy(AwlU imlw ky)Aqy rotI ",IF(AND(W8="Thu",E8>0),"kVI (pkOoiVAW smyq) Aqy cwvl",IF(AND(W8="Mon",E8>0),"dwl (mOsmI sbjI imlw ky) Aqy rotI",IF(AND(W8="Tue",E8>0),"rwjmwh Aqy cwvl",IF(AND(W8="Fri",E8>0),"moOsmI sbjI Aqy rotI",IF(AND(W8="Sat",E8>0),"dwl (mOsmI sbjI imlw ky) Aqy cwvl ","Cu`tI")))))) -> Cu`tI | V8: =IF(AND(E8>0,$V$5=W8)," Aqy KIr","") ->  | W8: ='Entry Sheet'!U16 -> Fri | X8: =IF(E8>0,W8&"OK"&V8,"") ->  | Y8: =IF(X8="MonOk",1,IF(X8="TueOk",2,IF(X8="WedOk",3,IF(X8="ThuOk",4,IF(X8="FriOk",5,IF(X8="SatOk",6,IF(X8="MonOk Aqy KIr",7,IF(X8="TueOk Aqy KIr",8,IF(X8="WedOk Aqy KIr",9,IF(X8="ThuOk Aqy KIr",10,IF(X8="FriOk Aqy KIr",11,IF(X8="SatOk Aqy KIr",12,IF(W8="Sun",13,14))))))))))))) -> 14 | Z8: 0 | AA8: 0 | AB8: 0 | AC8: 0 | AD8: 0 | AE8: 0 | AF8: 0 | AG8: 0 | AH8: 0 | AI8: 0 | AJ8: 0 | AK8: 0 | AL8: =IF('Entry Sheet'!$L$8='Calculation sheet'!W8,E8,0) -> 0 | AM8: Coly | AN8: 25 | AO8: =AN8/1000 -> 0.025
A9: 3 | B9: ='Entry Sheet'!D17 -> 2025-05-03 | D9: ='Entry Sheet'!J17 -> 0 | E9: 0 | F9: =P8 -> 0 | G9: =Q8 -> 0 | H9: 0 | I9: 0 | J9: =F9+H9 -> 0 | K9: =G9+I9 -> 0 | L9: 0 | M9: 0 | N9: 0 | O9: 0 | P9: =J9-L9 -> 0 | Q9: =K9-M9 -> 0 | R9: =E9*'Entry Sheet'!$S$1 -> 0 | S9: =S8+R9 -> 0 | T9: Cu`tI | U9: Cu`tI | W9: ='Entry Sheet'!U17 -> Sat | Y9: 14 | Z9: 0 | AA9: 0 | AB9: 0 | AC9: 0 | AD9: 0 | AE9: 0 | AF9: 0 | AG9: 0 | AH9: 0 | AI9: 0 | AJ9: 0 | AK9: 0 | AL9: =IF('Entry Sheet'!$L$8='Calculation sheet'!W9,E9,0) -> 0 | AM9: rwj mwh | AN9: 20 | AO9: 0.02
A10: 4 | B10: ='Entry Sheet'!D18 -> 2025-05-04 | D10: ='Entry Sheet'!J18 -> 0 | E10: 0 | F10: 0 | G10: 0 | H10: 0 | I10: 0 | J10: 0 | K10: 0 | L10: 0 | M10: 0 | N10: =N9+L10 -> 0 | O10: =O9+M10 -> 0 | P10: 0 | Q10: 0 | R10: =E10*'Entry Sheet'!$S$1 -> 0 | S10: 0 | T10: Cu`tI | U10: Cu`tI | W10: ='Entry Sheet'!U18 -> Sun | Y10: 13 | Z10: 0 | AA10: 0 | AB10: 0 | AC10: 0 | AD10: 0 | AE10: 0 | AF10: 0 | AG10: 0 | AH10: 0 | AI10: 0 | AJ10: 0 | AK10: 0 | AL10: =IF('Entry Sheet'!$L$8='Calculation sheet'!W10,E10,0) -> 0 | AM10: bysx | AN10: 20 | AO10: 0.02
A11: 5 | B11: ='Entry Sheet'!D19 -> 2025-05-05 | D11: ='Entry Sheet'!J19 -> 0 | E11: 0 | F11: 0 | G11: 0 | H11: 0 | I11: 0 | J11: 0 | K11: 0 | L11: 0 | M11: 0 | N11: =N10+L11 -> 0 | O11: 0 | P11: =J11-L11 -> 0 | Q11: 0 | R11: =E11*'Entry Sheet'!$S$1 -> 0 | S11: 0 | T11: Cu`tI | U11: Cu`tI | V11: =IF(AND(E11>0,$V$5=W11)," Aqy KIr","") ->  | W11: ='Entry Sheet'!U19 -> Mon | Y11: 14 | Z11: 0 | AA11: 0 | AB11: 0 | AC11: 0 | AD11: 0 | AE11: 0 | AF11: 0 | AG11: 0 | AH11: 0 | AI11: 0 | AJ11: 0 | AK11: 0 | AL11: =IF('Entry Sheet'!$L$8='Calculation sheet'!W11,E11,0) -> 0 | AM11: irPwief dwl/rwjmwh | AN11: 5 | AO11: 0.005
A12: 6 | B12: ='Entry Sheet'!D20 -> 2025-05-06 | D12: ='Entry Sheet'!J20 -> 0 | E12: 0 | F12: 0 | G12: 0 | H12: 0 | I12: 0 | J12: 0 | K12: 0 | L12: 0 | M12: 0 | N12: 0 | O12: 0 | P12: 0 | Q12: 0 | R12: =E12*'Entry Sheet'!$S$1 -> 0 | S12: 0 | T12: Cu`tI | U12: Cu`tI | W12: ='Entry Sheet'!U20 -> Tue | Y12: 14 | Z12: 0 | AA12: 0 | AB12: 0 | AC12: 0 | AD12: 0 | AE12: 0 | AF12: 0 | AG12: 0 | AH12: 0 | AI12: 0 | AJ12: 0 | AK12: 0 | AL12: =IF('Entry Sheet'!$L$8='Calculation sheet'!W12,E12,0) -> 0 | AM12: irPwief CoilAw nwl | AN12: 10.5 | AO12: 0.0105
A13: 7 | B13: ='Entry Sheet'!D21 -> 2025-05-07 | D13: ='Entry Sheet'!J21 -> 400 | E13: 400 | F13: 0 | G13: 0 | H13: 0 | I13: 0 | J13: 0 | K13: 0 | L13: 40 | M13: 0 | N13: 40 | O13: 0 | P13: -40 | Q13: 0 | R13: =E13*'Entry Sheet'!$S$1 -> 2712 | S13: 2712 | T13: kwly Colyy(AwlU imlw ky)Aqy rotI | U13: kwly Colyy(AwlU imlw ky)Aqy rotI | W13: ='Entry Sheet'!U21 -> Wed | X13: WedOK | Y13: 3 | Z13: 0 | AA13: 10 | AB13: 6 | AC13: 0 | AD13: 0 | AE13: 0 | AF13: 0 | AG13: 4.2 | AH13: 0 | AI13: 0 | AJ13: 6 | AK13: 0 | AL13: =IF('Entry Sheet'!$L$8='Calculation sheet'!W13,E13,0) -> 400 | AM13: irPwief kVI nwl | AN13: 5 | AO13: 0.005
A14: 8 | B14: ='Entry Sheet'!D22 -> 2025-05-08 | D14: ='Entry Sheet'!J22 -> 300 | E14: 300 | F14: -40 | G14: 0 | H14: 0 | I14: 0 | J14: -40 | K14: 0 | L14: 0 | M14: 30 | N14: 40 | O14: 30 | P14: -40 | Q14: -30 | R14: =E14*'Entry Sheet'!$S$1 -> 2034 | S14: 4746 | T14: kVI (pkOoiVAW smyq) Aqy cwvl | U14: kVI (pkOoiVAW smyq) Aqy cwvl | W14: ='Entry Sheet'!U22 -> Thu | X14: ThuOK | Y14: 4 | Z14: 0 | AA14: 0 | AB14: 3 | AC14: 6 | AD14: 6 | AE14: 0 | AF14: 0 | AG14: 1.5 | AH14: 0 | AI14: 0 | AJ14: 3 | AK14: 0 | AL14: =IF('Entry Sheet'!$L$8='Calculation sheet'!W14,E14,0) -> 0 | AM14: irPwief mosmI sbjI | AN14: 5 | AO14: 0.005
A15: 9 | B15: ='Entry Sheet'!D23 -> 2025-05-09 | D15: ='Entry Sheet'!J23 -> 0 | E15: 0 | F15: -40 | G15: -30 | H15: 0 | I15: 0 | J15: -40 | K15: -30 | L15: 0 | M15: 0 | N15: 40 | O15: 30 | P15: -40 | Q15: -30 | R15: =E15*'Entry Sheet'!$S$1 -> 0 | S15: 4746 | T15: Cu`tI | U15: Cu`tI | W15: ='Entry Sheet'!U23 -> Fri | Y15: 14 | Z15: 0 | AA15: 0 | AB15: 0 | AC15: 0 | AD15: 0 | AE15: 0 | AF15: 0 | AG15: 0 | AH15: 0 | AI15: 0 | AJ15: 0 | AK15: 0 | AL15: =IF('Entry Sheet'!$L$8='Calculation sheet'!W15,E15,0) -> 0 | AM15: nmk | AO15: 0
A16: 10 | B16: ='Entry Sheet'!D24 -> 2025-05-10 | D16: ='Entry Sheet'!J24 -> 0 | E16: 0 | F16: -40 | G16: -30 | H16: 0 | I16: 0 | J16: -40 | K16: -30 | L16: 0 | M16: 0 | N16: 40 | O16: 30 | P16: -40 | Q16: -30 | R16: =E16*'Entry Sheet'!$S$1 -> 0 | S16: 4746 | T16: Cu`tI | U16: Cu`tI | W16: ='Entry Sheet'!U24 -> Sat | Y16: 14 | Z16: 0 | AA16: 0 | AB16: 0 | AC16: 0 | AD16: 0 | AE16: 0 | AF16: 0 | AG16: 0 | AH16: 0 | AI16: 0 | AJ16: 0 | AK16: 0 | AL16: =IF('Entry Sheet'!$L$8='Calculation sheet'!W16,E16,0) -> 0 | AM16: imrc/mswlw | AO16: 0
A17: 11 | B17: ='Entry Sheet'!D25 -> 2025-05-11 | D17: ='Entry Sheet'!J25 -> 0 | E17: 0 | F17: -40 | G17: -30 | H17: 0 | I17: 0 | J17: -40 | K17: -30 | L17: 0 | M17: 0 | N17: 40 | O17: 30 | P17: -40 | Q17: -30 | R17: =E17*'Entry Sheet'!$S$1 -> 0 | S17: 4746 | T17: Cu`tI | U17: Cu`tI | W17: ='Entry Sheet'!U25 -> Sun | Y17: 13 | Z17: 0 | AA17: 0 | AB17: 0 | AC17: 0 | AD17: 0 | AE17: 0 | AF17: 0 | AG17: 0 | AH17: 0 | AI17: 0 | AJ17: 0 | AK17: 0 | AL17: =IF('Entry Sheet'!$L$8='Calculation sheet'!W17,E17,0) -> 0 | AM17: hldI | AO17: 0
A18: 12 | B18: ='Entry Sheet'!D26 -> 2025-05-12 | D18: ='Entry Sheet'!J26 -> 0 | E18: 0 | F18: -40 | G18: -30 | H18: 0 | I18: 0 | J18: -40 | K18: -30 | L18: 0 | M18: 0 | N18: 40 | O18: 30 | P18: -40 | Q18: -30 | R18: =E18*'Entry Sheet'!$S$1 -> 0 | S18: 4746 | T18: Cu`tI | U18: Cu`tI | W18: ='Entry Sheet'!U26 -> Mon | Y18: 14 | Z18: 0 | AA18: 0 | AB18: 0 | AC18: 0 | AD18: 0 | AE18: 0 | AF18: 0 | AG18: 0 | AH18: 0 | AI18: 0 | AJ18: 0 | AK18: 0 | AL18: =IF('Entry Sheet'!$L$8='Calculation sheet'!W18,E18,0) -> 0 | AM18: cInI | AN18: 10 | AO18: 0.01
A19: 13 | B19: ='Entry Sheet'!D27 -> 2025-05-13 | D19: ='Entry Sheet'!J27 -> 0 | E19: 0 | F19: -40 | G19: -30 | H19: 0 | I19: 0 | J19: -40 | K19: -30 | L19: 0 | M19: 0 | N19: 40 | O19: 30 | P19: -40 | Q19: -30 | R19: =E19*'Entry Sheet'!$S$1 -> 0 | S19: 4746 | T19: Cu`tI | U19: Cu`tI | W19: ='Entry Sheet'!U27 -> Tue | Y19: 14 | Z19: 0 | AA19: 0 | AB19: 0 | AC19: 0 | AD19: 0 | AE19: 0 | AF19: 0 | AG19: 0 | AH19: 0 | AI19: 0 | AJ19: 0 | AK19: 0 | AL19: =IF('Entry Sheet'!$L$8='Calculation sheet'!W19,E19,0) -> 0 | AM19: dhI | AN19: 20 | AO19: 0.02
A20: 14 | B20: ='Entry Sheet'!D28 -> 2025-05-14 | D20: ='Entry Sheet'!J28 -> 0 | E20: 0 | F20: -40 | G20: -30 | H20: 0 | I20: 0 | J20: -40 | K20: -30 | L20: 0 | M20: 0 | N20: 40 | O20: 30 | P20: -40 | Q20: -30 | R20: =E20*'Entry Sheet'!$S$1 -> 0 | S20: 4746 | T20: Cu`tI | U20: Cu`tI | W20: ='Entry Sheet'!U28 -> Wed | Y20: 14 | Z20: 0 | AA20: 0 | AB20: 0 | AC20: 0 | AD20: 0 | AE20: 0 | AF20: 0 | AG20: 0 | AH20: 0 | AI20: 0 | AJ20: 0 | AK20: 0 | AL20: =IF('Entry Sheet'!$L$8='Calculation sheet'!W20,E20,0) -> 0 | AM20: du`D | AN20: 30 | AO20: 0.03
A21: 15 | B21: ='Entry Sheet'!D29 -> 2025-05-15 | D21: ='Entry Sheet'!J29 -> 0 | E21: 0 | F21: -40 | G21: -30 | H21: 0 | I21: 0 | J21: -40 | K21: -30 | L21: 0 | M21: 0 | N21: 40 | O21: 30 | P21: -40 | Q21: -30 | R21: =E21*'Entry Sheet'!$S$1 -> 0 | S21: 4746 | T21: Cu`tI | U21: Cu`tI | W21: ='Entry Sheet'!U29 -> Thu | Y21: 14 | Z21: 0 | AA21: 0 | AB21: 0 | AC21: 0 | AD21: 0 | AE21: 0 | AF21: 0 | AG21: 0 | AH21: 0 | AI21: 0 | AJ21: 0 | AK21: 0 | AL21: =IF('Entry Sheet'!$L$8='Calculation sheet'!W21,E21,0) -> 0 | AM21: ipAwj dwl/rwjmwh | AN21: 10 | AO21: 0.01
A22: 16 | B22: ='Entry Sheet'!D30 -> 2025-05-16 | D22: ='Entry Sheet'!J30 -> 0 | E22: 0 | F22: -40 | G22: -30 | H22: 0 | I22: 0 | J22: -40 | K22: -30 | L22: 0 | M22: 0 | N22: 40 | O22: 30 | P22: -40 | Q22: -30 | R22: =E22*'Entry Sheet'!$S$1 -> 0 | S22: 4746 | T22: Cu`tI | U22: Cu`tI | W22: ='Entry Sheet'!U30 -> Fri | Y22: 14 | Z22: 0 | AA22: 0 | AB22: 0 | AC22: 0 | AD22: 0 | AE22: 0 | AF22: 0 | AG22: 0 | AH22: 0 | AI22: 0 | AJ22: 0 | AK22: 0 | AL22: =IF('Entry Sheet'!$L$8='Calculation sheet'!W22,E22,0) -> 0 | AM22: ipAwj Coly nwl | AN22: 15 | AO22: 0.015
A23: 17 | B23: ='Entry Sheet'!D31 -> 2025-05-17 | D23: ='Entry Sheet'!J31 -> 0 | E23: 0 | F23: -40 | G23: -30 | H23: 0 | I23: 0 | J23: -40 | K23: -30 | L23: 0 | M23: 0 | N23: 40 | O23: 30 | P23: -40 | Q23: -30 | R23: =E23*'Entry Sheet'!$S$1 -> 0 | S23: 4746 | T23: Cu`tI | U23: Cu`tI | W23: ='Entry Sheet'!U31 -> Sat | Y23: 14 | Z23: 0 | AA23: 0 | AB23: 0 | AC23: 0 | AD23: 0 | AE23: 0 | AF23: 0 | AG23: 0 | AH23: 0 | AI23: 0 | AJ23: 0 | AK23: 0 | AL23: =IF('Entry Sheet'!$L$8='Calculation sheet'!W23,E23,0) -> 0 | AM23: ipAwj kVI nwl | AN23: 10 | AO23: 0.01
A24: 18 | B24: ='Entry Sheet'!D32 -> 2025-05-18 | D24: ='Entry Sheet'!J32 -> 0 | E24: 0 | F24: -40 | G24: -30 | H24: 0 | I24: 0 | J24: -40 | K24: -30 | L24: 0 | M24: 0 | N24: 40 | O24: 30 | P24: -40 | Q24: -30 | R24: =E24*'Entry Sheet'!$S$1 -> 0 | S24: 4746 | T24: Cu`tI | U24: Cu`tI | W24: ='Entry Sheet'!U32 -> Sun | Y24: 13 | Z24: 0 | AA24: 0 | AB24: 0 | AC24: 0 | AD24: 0 | AE24: 0 | AF24: 0 | AG24: 0 | AH24: 0 | AI24: 0 | AJ24: 0 | AK24: 0 | AL24: =IF('Entry Sheet'!$L$8='Calculation sheet'!W24,E24,0) -> 0 | AM24: ipAwj mosmI sbjI nwl | AN24: 25 | AO24: 0.025
A25: 19 | B25: ='Entry Sheet'!D33 -> 2025-05-19 | D25: ='Entry Sheet'!J33 -> 0 | E25: 0 | F25: -40 | G25: -30 | H25: 0 | I25: 0 | J25: -40 | K25: -30 | L25: 0 | M25: 0 | N25: 40 | O25: 30 | P25: -40 | Q25: -30 | R25: =E25*'Entry Sheet'!$S$1 -> 0 | S25: 4746 | T25: Cu`tI | U25: Cu`tI | W25: ='Entry Sheet'!U33 -> Mon | Y25: 14 | Z25: 0 | AA25: 0 | AB25: 0 | AC25: 0 | AD25: 0 | AE25: 0 | AF25: 0 | AG25: 0 | AH25: 0 | AI25: 0 | AJ25: 0 | AK25: 0 | AL25: =IF('Entry Sheet'!$L$8='Calculation sheet'!W25,E25,0) -> 0 | AM25: AwlU kVI nwl | AN25: 10 | AO25: 0.01
A26: 20 | B26: ='Entry Sheet'!D34 -> 2025-05-20 | D26: ='Entry Sheet'!J34 -> 0 | E26: 0 | F26: -40 | G26: -30 | H26: 0 | I26: 0 | J26: -40 | K26: -30 | L26: 0 | M26: 0 | N26: 40 | O26: 30 | P26: -40 | Q26: -30 | R26: =E26*'Entry Sheet'!$S$1 -> 0 | S26: 4746 | T26: Cu`tI | U26: Cu`tI | W26: ='Entry Sheet'!U34 -> Tue | Y26: 14 | Z26: 0 | AA26: 0 | AB26: 0 | AC26: 0 | AD26: 0 | AE26: 0 | AF26: 0 | AG26: 0 | AH26: 0 | AI26: 0 | AJ26: 0 | AK26: 0 | AL26: =IF('Entry Sheet'!$L$8='Calculation sheet'!W26,E26,0) -> 0 | AM26: AwlU Coly nwl | AN26: 15 | AO26: 0.015
A27: 21 | B27: ='Entry Sheet'!D35 -> 2025-05-21 | D27: ='Entry Sheet'!J35 -> 0 | E27: 0 | F27: -40 | G27: -30 | H27: 0 | I27: 0 | J27: -40 | K27: -30 | L27: 0 | M27: 0 | N27: 40 | O27: 30 | P27: -40 | Q27: -30 | R27: =E27*'Entry Sheet'!$S$1 -> 0 | S27: 4746 | T27: Cu`tI | U27: Cu`tI | W27: ='Entry Sheet'!U35 -> Wed | Y27: 14 | Z27: 0 | AA27: 0 | AB27: 0 | AC27: 0 | AD27: 0 | AE27: 0 | AF27: 0 | AG27: 0 | AH27: 0 | AI27: 0 | AJ27: 0 | AK27: 0 | AL27: =IF('Entry Sheet'!$L$8='Calculation sheet'!W27,E27,0) -> 0 | AM27: moSmI sbjI dwl nwl | AN27: 6 | AO27: 0.006
A28: 22 | B28: ='Entry Sheet'!D36 -> 2025-05-22 | D28: ='Entry Sheet'!J36 -> 0 | E28: 0 | F28: -40 | G28: -30 | H28: 0 | I28: 0 | J28: -40 | K28: -30 | L28: 0 | M28: 0 | N28: 40 | O28: 30 | P28: -40 | Q28: -30 | R28: =E28*'Entry Sheet'!$S$1 -> 0 | S28: 4746 | T28: Cu`tI | U28: Cu`tI | W28: ='Entry Sheet'!U36 -> Thu | Y28: 14 | Z28: 0 | AA28: 0 | AB28: 0 | AC28: 0 | AD28: 0 | AE28: 0 | AF28: 0 | AG28: 0 | AH28: 0 | AI28: 0 | AJ28: 0 | AK28: 0 | AL28: =IF('Entry Sheet'!$L$8='Calculation sheet'!W28,E28,0) -> 0 | AM28: moSmI sbjI | AN28: 50 | AO28: 0.05
A29: 23 | B29: ='Entry Sheet'!D37 -> 2025-05-23 | D29: ='Entry Sheet'!J37 -> 0 | E29: 0 | F29: -40 | G29: -30 | H29: 0 | I29: 0 | J29: -40 | K29: -30 | L29: 0 | M29: 0 | N29: 40 | O29: 30 | P29: -40 | Q29: -30 | R29: =E29*'Entry Sheet'!$S$1 -> 0 | S29: 4746 | T29: Cu`tI | U29: Cu`tI | W29: ='Entry Sheet'!U37 -> Fri | Y29: 14 | Z29: 0 | AA29: 0 | AB29: 0 | AC29: 0 | AD29: 0 | AE29: 0 | AF29: 0 | AG29: 0 | AH29: 0 | AI29: 0 | AJ29: 0 | AK29: 0 | AL29: =IF('Entry Sheet'!$L$8='Calculation sheet'!W29,E29,0) -> 0 | AM29: Awtw ipsweI | AO29: 0
A30: 24 | B30: ='Entry Sheet'!D38 -> 2025-05-24 | D30: ='Entry Sheet'!J38 -> 0 | E30: 0 | F30: -40 | G30: -30 | H30: 0 | I30: 0 | J30: -40 | K30: -30 | L30: 0 | M30: 0 | N30: 40 | O30: 30 | P30: -40 | Q30: -30 | R30: =E30*'Entry Sheet'!$S$1 -> 0 | S30: 4746 | T30: Cu`tI | U30: Cu`tI | W30: ='Entry Sheet'!U38 -> Sat | Y30: 14 | Z30: 0 | AA30: 0 | AB30: 0 | AC30: 0 | AD30: 0 | AE30: 0 | AF30: 0 | AG30: 0 | AH30: 0 | AI30: 0 | AJ30: 0 | AK30: 0 | AL30: =IF('Entry Sheet'!$L$8='Calculation sheet'!W30,E30,0) -> 0 | AM30: bwlx | AO30: 0
A31: 25 | B31: ='Entry Sheet'!D39 -> 2025-05-25 | D31: ='Entry Sheet'!J39 -> 0 | E31: 0 | F31: -40 | G31: -30 | H31: 0 | I31: 0 | J31: -40 | K31: -30 | L31: 0 | M31: 0 | N31: 40 | O31: 30 | P31: -40 | Q31: -30 | R31: =E31*'Entry Sheet'!$S$1 -> 0 | S31: 4746 | T31: Cu`tI | U31: Cu`tI | W31: ='Entry Sheet'!U39 -> Sun | Y31: 13 | Z31: 0 | AA31: 0 | AB31: 0 | AC31: 0 | AD31: 0 | AE31: 0 | AF31: 0 | AG31: 0 | AH31: 0 | AI31: 0 | AJ31: 0 | AK31: 0 | AL31: =IF('Entry Sheet'!$L$8='Calculation sheet'!W31,E31,0) -> 0
A32: 26 | B32: ='Entry Sheet'!D40 -> 2025-05-26 | D32: ='Entry Sheet'!J40 -> 0 | E32: 0 | F32: -40 | G32: -30 | H32: 0 | I32: 0 | J32: -40 | K32: -30 | L32: 0 | M32: 0 | N32: 40 | O32: 30 | P32: -40 | Q32: -30 | R32: =E32*'Entry Sheet'!$S$1 -> 0 | S32: 4746 | T32: Cu`tI | U32: Cu`tI | W32: ='Entry Sheet'!U40 -> Mon | Y32: 14 | Z32: 0 | AA32: 0 | AB32: 0 | AC32: 0 | AD32: 0 | AE32: 0 | AF32: 0 | AG32: 0 | AH32: 0 | AI32: 0 | AJ32: 0 | AK32: 0 | AL32: =IF('Entry Sheet'!$L$8='Calculation sheet'!W32,E32,0) -> 0
A33: 27 | B33: ='Entry Sheet'!D41 -> 2025-05-27 | D33: ='Entry Sheet'!J41 -> 0 | E33: 0 | F33: -40 | G33: -30 | H33: 0 | I33: 0 | J33: -40 | K33: -30 | L33: 0 | M33: 0 | N33: 40 | O33: 30 | P33: -40 | Q33: -30 | R33: =E33*'Entry Sheet'!$S$1 -> 0 | S33: 4746 | T33: Cu`tI | U33: Cu`tI | W33: ='Entry Sheet'!U41 -> Tue | Y33: 14 | Z33: 0 | AA33: 0 | AB33: 0 | AC33: 0 | AD33: 0 | AE33: 0 | AF33: 0 | AG33: 0 | AH33: 0 | AI33: 0 | AJ33: 0 | AK33: 0 | AL33: =IF('Entry Sheet'!$L$8='Calculation sheet'!W33,E33,0) -> 0
A34: 28 | B34: ='Entry Sheet'!D42 -> 2025-05-28 | D34: ='Entry Sheet'!J42 -> 0 | E34: 0 | F34: -40 | G34: -30 | H34: 0 | I34: 0 | J34: -40 | K34: -30 | L34: 0 | M34: 0 | N34: 40 | O34: 30 | P34: -40 | Q34: -30 | R34: =E34*'Entry Sheet'!$S$1 -> 0 | S34: 4746 | T34: Cu`tI | U34: Cu`tI | W34: ='Entry Sheet'!U42 -> Wed | Y34: 14 | Z34: 0 | AA34: 0 | AB34: 0 | AC34: 0 | AD34: 0 | AE34: 0 | AF34: 0 | AG34: 0 | AH34: 0 | AI34: 0 | AJ34: 0 | AK34: 0 | AL34: =IF('Entry Sheet'!$L$8='Calculation sheet'!W34,E34,0) -> 0
A35: 29 | B35: ='Entry Sheet'!D43 -> 2025-05-29 | D35: ='Entry Sheet'!J43 -> 0 | E35: =D35 -> 0 | F35: =P34 -> -40 | G35: =Q34 -> -30 | H35: 0 | I35: 0 | J35: =F35+H35 -> -40 | K35: =G35+I35 -> -30 | L35: 0 | M35: 0 | N35: =N34+L35 -> 40 | O35: =O34+M35 -> 30 | P35: =J35-L35 -> -40 | Q35: =K35-M35 -> -30 | R35: =E35*'Entry Sheet'!$S$1 -> 0 | S35: =S34+R35 -> 4746 | T35: Cu`tI | U35: Cu`tI | W35: ='Entry Sheet'!U43 -> Thu | Y35: 14 | Z35: 0 | AA35: 0 | AB35: 0 | AC35: 0 | AD35: 0 | AE35: 0 | AF35: 0 | AG35: 0 | AH35: 0 | AI35: 0 | AJ35: 0 | AK35: 0 | AL35: =IF('Entry Sheet'!$L$8='Calculation sheet'!W35,E35,0) -> 0
A36: 30 | B36: ='Entry Sheet'!D44 -> 2025-05-30 | D36: ='Entry Sheet'!J44 -> 0 | E36: =D36 -> 0 | F36: -40 | G36: -30 | H36: 0 | I36: 0 | J36: -40 | K36: -30 | L36: 0 | M36: 0 | N36: 40 | O36: 30 | P36: -40 | Q36: -30 | R36: =E36*'Entry Sheet'!$S$1 -> 0 | S36: 4746 | T36: Cu`tI | U36: Cu`tI | W36: ='Entry Sheet'!U44 -> Fri | Y36: 14 | Z36: 0 | AA36: 0 | AB36: 0 | AC36: 0 | AD36: 0 | AE36: 0 | AF36: 0 | AG36: 0 | AH36: 0 | AI36: 0 | AJ36: 0 | AK36: 0 | AL36: =IF('Entry Sheet'!$L$8='Calculation sheet'!W36,E36,0) -> 0
A37: 31 | B37: ='Entry Sheet'!D45 -> 2025-05-31 | D37: ='Entry Sheet'!J45 -> 0 | E37: =D37 -> 0 | F37: =P36 -> -40 | G37: =Q36 -> -30 | H37: 0 | I37: 0 | J37: =F37+H37 -> -40 | K37: =G37+I37 -> -30 | L37: 0 | M37: 0 | N37: 40 | O37: 30 | P37: -40 | Q37: -30 | R37: =E37*'Entry Sheet'!$S$1 -> 0 | S37: 4746 | T37: Cu`tI | U37: Cu`tI | W37: ='Entry Sheet'!U45 -> Sat | Y37: 14 | Z37: 0 | AA37: 0 | AB37: 0 | AC37: 0 | AD37: 0 | AE37: 0 | AF37: 0 | AG37: 0 | AH37: 0 | AI37: 0 | AJ37: 0 | AK37: 0 | AL37: =IF('Entry Sheet'!$L$8='Calculation sheet'!W37,E37,0) -> 0
B38: joV | C38: =SUMIF(D7:D37,">0",C7:C37) -> 0 | D38: =SUM(D7:D37) -> 700 | E38: =SUM(E6:E37) -> 700 | H38: =#REF! ->  | I38: =#REF! ->  | J38: =#REF! ->  | L38: =SUM(L7:L37) -> 40 | M38: =SUM(M7:M37) -> 30 | R38: =SUM(R7:R37) -> 4746 | X38: Total | Z38: =SUM(Z7:Z37) -> 0 | AA38: =SUM(AA7:AA37) -> 10 | AB38: 9 | AC38: 6 | AD38: 6 | AE38: 0 | AF38: =SUM(AF7:AF37) -> 0 | AG38: 5.7 | AH38: 0 | AI38: 0 | AJ38: 9 | AK38: 0 | AL38: =SUM(AL7:AL37) -> 400
R39: =E38*'Entry Sheet'!S1 -> 4746
R40: =IF(R38=R39,"Match","Error") -> Match

Sheet Annual Report
A1: Month Wise Record
B2: Opening Balance | D2: Receiving This Month | F2: Consumption (in Kg) | H2: Balance at End | J2: Total Students | K2: Cookng Cost of All Std. | L2: Fund Allocate at PFMS This Month | M2: Fund Utilize AS PFMS (in RS.) | N2: Balance Fund in PFMS | O2: Fund Surplus/Short As Total Cost | P2: Total Pieces Fruit Given | Q2: Amount of Food | R2: Woking Days
A3: Month &Year | B3: Wheat | C3: Rice | D3: Wheat | E3: Rice | F3: Wheat | G3: Rice | H3: Wheet | I3: Rice
A4: 2024-10-01 | B4: 0 | C4: 0 | D4: 0 | E4: 0 | F4: 0 | G4: 0 | H4: =(B4+D4)-F4 -> 0 | I4: =(C4+E4)-G4 -> 0 | J4: 0 | K4: 0 | L4: 0 | M4: 0 | N4: =L4-M4 -> 0 | O4: =L4-K4 -> 0
A5: 2025-01-01 | B5: 0 | C5: 0 | D5: 0 | E5: 0 | F5: 130 | G5: 160 | H5: =(B5+D5)-F5 -> -130 | I5: =(C5+E5)-G5 -> -160 | J5: 2900 | K5: 17951 | N5: =L5-M5 -> 0 | O5: =L5-K5 -> -17951 | P5: 700 | Q5: 3500 | R5: 6
H6: 0 | I6: 0 | N6: 0 | O6: 0
H7: 0 | I7: 0 | N7: 0 | O7: 0
H8: 0 | I8: 0 | N8: 0 | O8: 0
H9: 0 | I9: 0 | N9: 0 | O9: 0
H10: 0 | I10: 0 | N10: 0 | O10: 0
H11: 0 | I11: 0 | N11: 0 | O11: 0
H12: 0 | I12: 0 | N12: 0 | O12: 0
H13: 0 | I13: 0 | N13: 0 | O13: 0
H14: 0 | I14: 0 | N14: 0 | O14: 0
H15: 0 | I15: 0 | N15: 0 | O15: 0
H16: 0 | I16: 0 | N16: 0 | O16: 0
H17: 0 | I17: 0 | N17: 0 | O17: 0
H18: 0 | I18: 0 | N18: 0 | O18: 0
H19: 0 | I19: 0 | N19: 0 | O19: 0
H20: 0 | I20: 0 | N20: 0 | O20: 0
H21: 0 | I21: 0 | N21: 0 | O21: 0
H22: 0 | I22: 0 | N22: 0 | O22: 0
H23: 0 | I23: 0 | N23: 0 | O23: 0
H24: 0 | I24: 0 | N24: 0 | O24: 0
H25: 0 | I25: 0 | N25: 0 | O25: 0
H26: 0 | I26: 0 | N26: 0 | O26: 0
H27: 0 | I27: 0 | N27: 0 | O27: 0
H28: 0 | I28: 0 | N28: 0 | O28: 0
H29: 0 | I29: 0 | N29: 0 | O29: 0
H30: 0 | I30: 0 | N30: 0 | O30: 0
H31: 0 | I31: 0 | N31: 0 | O31: 0
H32: 0 | I32: 0 | N32: 0 | O32: 0
H33: 0 | I33: 0 | N33: 0 | O33: 0
H34: 0 | I34: 0 | N34: 0 | O34: 0
H35: 0 | I35: 0 | N35: 0 | O35: 0
H36: 0 | I36: 0 | N36: 0 | O36: 0
H37: 0 | I37: 0 | N37: 0 | O37: 0
H38: 0 | I38: 0 | N38: 0 | O38: 0
H39: 0 | I39: 0 | N39: 0 | O39: 0
H40: 0 | I40: 0 | N40: 0 | O40: 0
H41: 0 | I41: 0 | N41: 0 | O41: 0
H42: 0 | I42: 0 | N42: 0 | O42: 0
H43: 0 | I43: 0 | N43: 0 | O43: 0
H44: 0 | I44: 0 | N44: 0 | O44: 0
H45: 0 | I45: 0 | N45: 0 | O45: 0
H46: 0 | I46: 0 | N46: 0 | O46: 0
H47: 0 | I47: 0 | N47: 0 | O47: 0
H48: 0 | I48: 0 | N48: 0 | O48: 0
H49: 0 | I49: 0 | N49: 0 | O49: 0
H50: 0 | I50: 0 | N50: 0 | O50: 0
H51: 0 | I51: 0 | N51: 0 | O51: 0
H52: 0 | I52: 0 | N52: 0 | O52: 0
H53: 0 | I53: 0 | N53: 0 | O53: 0
H54: 0 | I54: 0 | N54: 0 | O54: 0
H55: 0 | I55: 0 | N55: 0 | O55: 0
H56: 0 | I56: 0 | N56: 0 | O56: 0
H57: 0 | I57: 0 | N57: 0 | O57: 0
H58: 0 | I58: 0 | N58: 0 | O58: 0
H59: 0 | I59: 0 | N59: 0 | O59: 0
H60: 0 | I60: 0 | N60: 0 | O60: 0
H61: 0 | I61: 0 | N61: 0 | O61: 0
H62: 0 | I62: 0 | N62: 0 | O62: 0
H63: 0 | I63: 0 | N63: 0 | O63: 0
H64: 0 | I64: 0 | N64: 0 | O64: 0
H65: 0 | I65: 0 | N65: 0 | O65: 0
H66: 0 | I66: 0 | N66: 0 | O66: 0
H67: 0 | I67: 0 | N67: 0 | O67: 0
H68: 0 | I68: 0 | N68: 0 | O68: 0
H69: =(B69+D69)-F69 -> 0 | I69: =(C69+E69)-G69 -> 0 | N69: =L69-M69 -> 0 | O69: =L69-K69 -> 0
H70: 0 | I70: 0 | N70: 0 | O70: 0
H71: 0 | I71: 0 | N71: 0 | O71: 0
H72: 0 | I72: 0 | N72: 0 | O72: 0
H73: 0 | I73: 0 | N73: 0 | O73: 0
H74: 0 | I74: 0 | N74: 0 | O74: 0
H75: 0 | I75: 0 | N75: 0 | O75: 0
H76: 0 | I76: 0 | N76: 0 | O76: 0
H77: 0 | I77: 0 | N77: 0 | O77: 0
H78: 0 | I78: 0 | N78: 0 | O78: 0
H79: 0 | I79: 0 | N79: 0 | O79: 0
H80: 0 | I80: 0 | N80: 0 | O80: 0
H81: 0 | I81: 0 | N81: 0 | O81: 0
H82: 0 | I82: 0 | N82: 0 | O82: 0
H83: 0 | I83: 0 | N83: 0 | O83: 0
H84: 0 | I84: 0 | N84: 0 | O84: 0
H85: 0 | I85: 0 | N85: 0 | O85: 0
H86: 0 | I86: 0 | N86: 0 | O86: 0
H87: 0 | I87: 0 | N87: 0 | O87: 0
H88: 0 | I88: 0 | N88: 0 | O88: 0
H89: 0 | I89: 0 | N89: 0 | O89: 0
H90: 0 | I90: 0 | N90: 0 | O90: 0
H91: 0 | I91: 0 | N91: 0 | O91: 0
H92: 0 | I92: 0 | N92: 0 | O92: 0
H93: 0 | I93: 0 | N93: 0 | O93: 0
H94: 0 | I94: 0 | N94: 0 | O94: 0
H95: 0 | I95: 0 | N95: 0 | O95: 0
H96: 0 | I96: 0 | N96: 0 | O96: 0
H97: 0 | I97: 0 | N97: 0 | O97: 0
H98: 0 | I98: 0 | N98: 0 | O98: 0
H99: 0 | I99: 0 | N99: 0 | O99: 0
H100: 0 | I100: 0 | N100: 0 | O100: 0
H101: 0 | I101: 0 | N101: 0 | O101: 0
H102: 0 | I102: 0 | N102: 0 | O102: 0
H103: 0 | I103: 0 | N103: 0 | O103: 0
H104: 0 | I104: 0 | N104: 0 | O104: 0
H105: 0 | I105: 0 | N105: 0 | O105: 0
H106: 0 | I106: 0 | N106: 0 | O106: 0
H107: 0 | I107: 0 | N107: 0 | O107: 0
H108: 0 | I108: 0 | N108: 0 | O108: 0
H109: 0 | I109: 0 | N109: 0 | O109: 0
H110: 0 | I110: 0 | N110: 0 | O110: 0
H111: 0 | I111: 0 | N111: 0 | O111: 0
H112: 0 | I112: 0 | N112: 0 | O112: 0
H113: 0 | I113: 0 | N113: 0 | O113: 0
H114: 0 | I114: 0 | N114: 0 | O114: 0
H115: 0 | I115: 0 | N115: 0 | O115: 0
H116: 0 | I116: 0 | N116: 0 | O116: 0
H117: 0 | I117: 0 | N117: 0 | O117: 0
H118: 0 | I118: 0 | N118: 0 | O118: 0
H119: 0 | I119: 0 | N119: 0 | O119: 0
H120: 0 | I120: 0 | N120: 0 | O120: 0
H121: 0 | I121: 0 | N121: 0 | O121: 0
H122: 0 | I122: 0 | N122: 0 | O122: 0
H123: 0 | I123: 0 | N123: 0 | O123: 0
H124: 0 | I124: 0 | N124: 0 | O124: 0
H125: 0 | I125: 0 | N125: 0 | O125: 0
H126: 0 | I126: 0 | N126: 0 | O126: 0
H127: 0 | I127: 0 | N127: 0 | O127: 0
H128: 0 | I128: 0 | N128: 0 | O128: 0
H129: 0 | I129: 0 | N129: 0 | O129: 0
H130: 0 | I130: 0 | N130: 0 | O130: 0
H131: 0 | I131: 0 | N131: 0 | O131: 0
H132: 0 | I132: 0 | N132: 0 | O132: 0
H133: =(B133+D133)-F133 -> 0 | I133: =(C133+E133)-G133 -> 0 | N133: =L133-M133 -> 0 | O133: =L133-K133 -> 0
H134: 0 | I134: 0 | N134: 0 | O134: 0
H135: 0 | I135: 0 | N135: 0 | O135: 0
H136: 0 | I136: 0 | N136: 0 | O136: 0
H137: 0 | I137: 0 | N137: 0 | O137: 0
H138: 0 | I138: 0 | N138: 0 | O138: 0
H139: 0 | I139: 0 | N139: 0 | O139: 0
H140: 0 | I140: 0 | N140: 0 | O140: 0
H141: 0 | I141: 0 | N141: 0 | O141: 0
H142: 0 | I142: 0 | N142: 0 | O142: 0
H143: 0 | I143: 0 | N143: 0 | O143: 0
H144: 0 | I144: 0 | N144: 0 | O144: 0
H145: 0 | I145: 0 | N145: 0 | O145: 0
H146: 0 | I146: 0 | N146: 0 | O146: 0
H147: 0 | I147: 0 | N147: 0 | O147: 0
H148: 0 | I148: 0 | N148: 0 | O148: 0
H149: 0 | I149: 0 | N149: 0 | O149: 0
H150: 0 | I150: 0 | N150: 0 | O150: 0
H151: 0 | I151: 0 | N151: 0 | O151: 0
H152: 0 | I152: 0 | N152: 0 | O152: 0
H153: 0 | I153: 0 | N153: 0 | O153: 0
H154: 0 | I154: 0 | N154: 0 | O154: 0
H155: 0 | I155: 0 | N155: 0 | O155: 0
H156: 0 | I156: 0 | N156: 0 | O156: 0
H157: 0 | I157: 0 | N157: 0 | O157: 0
H158: 0 | I158: 0 | N158: 0 | O158: 0
H159: 0 | I159: 0 | N159: 0 | O159: 0
H160: 0 | I160: 0 | N160: 0 | O160: 0
H161: 0 | I161: 0 | N161: 0 | O161: 0
H162: 0 | I162: 0 | N162: 0 | O162: 0
H163: 0 | I163: 0 | N163: 0 | O163: 0
H164: 0 | I164: 0 | N164: 0 | O164: 0
H165: 0 | I165: 0 | N165: 0 | O165: 0
H166: 0 | I166: 0 | N166: 0 | O166: 0
H167: 0 | I167: 0 | N167: 0 | O167: 0
H168: 0 | I168: 0 | N168: 0 | O168: 0
H169: 0 | I169: 0 | N169: 0 | O169: 0
H170: 0 | I170: 0 | N170: 0 | O170: 0
H171: 0 | I171: 0 | N171: 0 | O171: 0
H172: 0 | I172: 0 | N172: 0 | O172: 0
H173: 0 | I173: 0 | N173: 0 | O173: 0
H174: 0 | I174: 0 | N174: 0 | O174: 0
H175: 0 | I175: 0 | N175: 0 | O175: 0
H176: 0 | I176: 0 | N176: 0 | O176: 0
H177: 0 | I177: 0 | N177: 0 | O177: 0
H178: 0 | I178: 0 | N178: 0 | O178: 0
H179: 0 | I179: 0 | N179: 0 | O179: 0
H180: 0 | I180: 0 | N180: 0 | O180: 0
H181: 0 | I181: 0 | N181: 0 | O181: 0
H182: 0 | I182: 0 | N182: 0 | O182: 0
H183: 0 | I183: 0 | N183: 0 | O183: 0
H184: 0 | I184: 0 | N184: 0 | O184: 0
H185: 0 | I185: 0 | N185: 0 | O185: 0
H186: 0 | I186: 0 | N186: 0 | O186: 0
H187: 0 | I187: 0 | N187: 0 | O187: 0
H188: 0 | I188: 0 | N188: 0 | O188: 0
H189: 0 | I189: 0 | N189: 0 | O189: 0
H190: 0 | I190: 0 | N190: 0 | O190: 0
H191: 0 | I191: 0 | N191: 0 | O191: 0
H192: 0 | I192: 0 | N192: 0 | O192: 0
H193: 0 | I193: 0 | N193: 0 | O193: 0
H194: 0 | I194: 0 | N194: 0 | O194: 0
H195: 0 | I195: 0 | N195: 0 | O195: 0
H196: 0 | I196: 0 | N196: 0 | O196: 0
H197: =(B197+D197)-F197 -> 0 | I197: =(C197+E197)-G197 -> 0 | N197: =L197-M197 -> 0 | O197: =L197-K197 -> 0
H198: 0 | I198: 0 | N198: 0 | O198: 0
H199: 0 | I199: 0 | N199: 0 | O199: 0
H200: 0 | I200: 0 | N200: 0 | O200: 0
... 418 more rows

Sheet Sheet5 (hidden)
A1: kYS bu`k qy mwhvwrI (Abstract)gosvwrw
A2: (jmwq 1vI qo 5vI) | D2: =#REF! -> 
D4: mhInw | E4: ='Bill Print'!H3 -> May_2025
A5: kuikMg kwst dI pRpqI (ru ivc) | E5: Krcy dw vyrvw
A6: imqI | B6: muFlw bkwieAw | C6: pRwpqI | D6: ku`l joV | E6: 1 | F6: Bojn krn vwly ku`l ividAwrQIAW dI igxqI | G6: =#REF! -> 
A7: 1 | E7: 2 | F7: skUl ivc vrikMg idnW dI igxqI | G7: =COUNTIF(#REF!,">0") -> 
A8: 2 | E8: 3 | F8: ="mwhvwrI rupey " &#REF! &" pRqI b`cw pRqI idn nwl Krcw" ->  | G8: =G6*#REF! -> 
A9: 3 | F9: ku`k Bytw(qnKwh)
A10: 4 | E10: 4 | F10: kuikMg kwst dI ku`l rkm | I10: kuikMg kwst dw muFlw bkwieAW ilKo jI
A11: 5 | E11: 5 | F11: mhIny dy AMq qy kuikMg kwst dI bkwieAW rkm | G11: =G10-G8 -> 
A12: 6 | F12: (kwlm 4-3)
A13: 7
A14: 8
A15: 9 | F15: kuikMg kwst dI bkwieAw rkm | G15: =G10 -> 0
A16: 10 | F16: Awmdn | I16: kuikMg kwst ies pRwpq rkm ilKo jI
A17: 11 | F17: ku`l Awmdn | G17: =G16+G15 -> 0
A18: 12 | F18: ies mhIny dw Krc | G18: =G8 -> 
A19: 13 | F19: bkwieAw kuikMg kwst dI rkm | G19: =G17-G18 -> 
A20: 14
A21: 15
A22: 16 | F22: k`uk Bytw dI ipClI bkwieAw rkm
A23: 17 | F23: Awmdn
A24: 18 | F24: ku`l Awmdn
A25: 19 | F25: ies mhIny dw Krc (qnKwh)
A26: 20 | F26: bkwieAw ku`k Bytw dI rkm
A27: 21
A28: 22
A29: 23
A30: 24
A31: 25
A32: 26
A33: 27
A34: 28
A35: 29
A36: 30
A37: 31
